[Event "Late-Titled-Tuesday-Blitz-March-12-2024"]
[Site "Chess.com"]
[Date "2024.03.12"]
[Round "4"]
[White "ChessBrainiacOnTwitch"]
[Black "RantomOpening"]
[Result "0-1"]
[WhiteElo "2763"]
[BlackElo "2588"]
[TimeControl "180+1"]
[EndTime "14:37:40 PDT"]
[Termination "RantomOpening won by resignation"]

1. e4 {[%clk 0:03:00.9]} 1... c5 {[%clk 0:02:56.4]} 2. Nc3 {[%clk 0:02:58.5]}
2... Nc6 {[%clk 0:02:53.5]} 3. Bb5 {[%clk 0:02:57.9]} 3... Qc7 {[%clk
0:02:51.9]} 4. Nf3 {[%clk 0:02:53.1]} 4... e6 {[%clk 0:02:47.5]} 5. O-O {[%clk
0:02:50.5]} 5... a6 {[%clk 0:02:44.1]} 6. Bxc6 {[%clk 0:02:42.1]} 6... Qxc6
{[%clk 0:02:45]} 7. d4 {[%clk 0:02:40]} 7... cxd4 {[%clk 0:02:44.2]} 8. Qxd4
{[%clk 0:02:35.7]} 8... Nf6 {[%clk 0:02:37.2]} 9. e5 {[%clk 0:02:13.6]} 9... Bc5
{[%clk 0:02:35]} 10. Qh4 {[%clk 0:02:05]} 10... Nd5 {[%clk 0:02:34.1]} 11. Ne4
{[%clk 0:02:01.7]} 11... Be7 {[%clk 0:02:32.6]} 12. Qg3 {[%clk 0:01:52]} 12...
g6 {[%clk 0:02:31.2]} 13. Bh6 {[%clk 0:01:45.2]} 13... b5 {[%clk 0:02:27.3]} 14.
Nd6+ {[%clk 0:01:41.7]} 14... Bxd6 {[%clk 0:02:22.3]} 15. exd6 {[%clk
0:01:42.6]} 15... f6 {[%clk 0:02:15.9]} 16. Rfe1 {[%clk 0:01:13.9]} 16... Bb7
{[%clk 0:02:14.9]} 17. Nd4 {[%clk 0:01:12.4]} 17... Qc4 {[%clk 0:02:02.8]} 18.
c3 {[%clk 0:01:12.7]} 18... O-O-O {[%clk 0:02:01.4]} 19. a4 {[%clk 0:01:10.5]}
19... Bc6 {[%clk 0:01:56.2]} 20. axb5 {[%clk 0:01:08.6]} 20... axb5 {[%clk
0:01:55.1]} 21. Ra7 {[%clk 0:01:02.2]} 21... Kb8 {[%clk 0:01:45.5]} 22. Rea1
{[%clk 0:01:01.1]} 22... Nb6 {[%clk 0:01:46]} 23. b3 {[%clk 0:00:54.7]} 23...
Qc5 {[%clk 0:01:44.2]} 24. Be3 {[%clk 0:00:45.2]} 24... Nd5 {[%clk 0:01:40.8]}
25. Nxe6 {[%clk 0:00:31.3]} 25... Qxc3 {[%clk 0:01:40]} 26. Nxd8 {[%clk
0:00:27.5]} 26... Rxd8 {[%clk 0:01:40.9]} 27. Bb6 {[%clk 0:00:21.8]} 27... Qxg3
{[%clk 0:01:28.4]} 28. Bc7+ {[%clk 0:00:22]} 28... Nxc7 {[%clk 0:01:26.4]} 29.
hxg3 {[%clk 0:00:18.3]} 29... Ne8 {[%clk 0:01:22.2]} 30. R7a2 {[%clk 0:00:10.5]}
30... Nxd6 {[%clk 0:01:22.1]} 31. Re1 {[%clk 0:00:11.4]} 31... Re8 {[%clk
0:01:20.3]} 32. Rd1 {[%clk 0:00:11.8]} 32... Kc7 {[%clk 0:01:19.4]} 33. Ra7+
{[%clk 0:00:10.3]} 33... Nb7 {[%clk 0:01:19]} 34. Ra2 {[%clk 0:00:10.1]} 34...
Nc5 {[%clk 0:01:18.1]} 35. b4 {[%clk 0:00:09.9]} 35... Ne4 {[%clk 0:01:17.3]}
36. Re2 {[%clk 0:00:09.4]} 36... Ra8 {[%clk 0:01:17.1]} 37. Re3 {[%clk
0:00:08.5]} 37... Ra4 {[%clk 0:01:13.2]} 38. f3 {[%clk 0:00:06.7]} 38... Nxg3
{[%clk 0:01:10.4]} 39. Re7 {[%clk 0:00:07.2]} 39... h5 {[%clk 0:01:09.9]} 40.
Rf7 {[%clk 0:00:04]} 40... Rxb4 {[%clk 0:01:08.6]} 41. Rxf6 {[%clk 0:00:04.5]}
41... g5 {[%clk 0:01:07.8]} 42. Re1 {[%clk 0:00:03.3]} 42... g4 {[%clk
0:01:04.5]} 43. fxg4 {[%clk 0:00:01.5]} 43... Rxg4 {[%clk 0:01:03.9]} 44. Kh2
{[%clk 0:00:02]} 44... Ne4 {[%clk 0:01:03.4]} 45. Rh6 {[%clk 0:00:01.1]} 45...
Nd6 {[%clk 0:00:59.8]} 46. Re2 {[%clk 0:00:01.4]} 46... h4 {[%clk 0:00:59.1]}
47. Kh3 {[%clk 0:00:01.6]} 47... Rg3+ {[%clk 0:00:58.8]} 48. Kxh4 {[%clk
0:00:02.3]} 48... Rxg2 {[%clk 0:00:58.3]} 49. Rxg2 {[%clk 0:00:02.2]} 49... Bxg2
{[%clk 0:00:58.8]} 50. Kg3 {[%clk 0:00:03.1]} 50... Nf5+ {[%clk 0:00:58.1]} 0-1

[Event "Late-Titled-Tuesday-Blitz-March-12-2024"]
[Site "Chess.com"]
[Date "2024.03.12"]
[Round "4"]
[White "Jarming"]
[Black "ccccvhhhj"]
[Result "1-0"]
[WhiteElo "2654"]
[BlackElo "2458"]
[TimeControl "180+1"]
[EndTime "14:37:48 PDT"]
[Termination "Jarming won on time"]

1. d4 {[%clk 0:03:00.9]} 1... e5 {[%clk 0:02:59.7]} 2. dxe5 {[%clk 0:02:53.9]}
2... d6 {[%clk 0:03:00.1]} 3. e4 {[%clk 0:02:52.6]} 3... Nc6 {[%clk 0:02:59.4]}
4. Nf3 {[%clk 0:02:51.6]} 4... Bg4 {[%clk 0:02:59.1]} 5. Bb5 {[%clk 0:02:47.2]}
5... dxe5 {[%clk 0:02:49.7]} 6. Nbd2 {[%clk 0:02:40.3]} 6... Bd6 {[%clk
0:02:46.6]} 7. h3 {[%clk 0:02:38.6]} 7... Bh5 {[%clk 0:02:44.8]} 8. c3 {[%clk
0:02:38.8]} 8... Ne7 {[%clk 0:02:41.4]} 9. Nf1 {[%clk 0:02:38.8]} 9... O-O
{[%clk 0:02:40.3]} 10. Ng3 {[%clk 0:02:39]} 10... Bg6 {[%clk 0:02:40.9]} 11. Nh4
{[%clk 0:02:38.5]} 11... a6 {[%clk 0:02:15.7]} 12. Ba4 {[%clk 0:02:35.8]} 12...
Kh8 {[%clk 0:02:12.6]} 13. Qf3 {[%clk 0:02:32.4]} 13... Nc8 {[%clk 0:02:01.4]}
14. Nhf5 {[%clk 0:02:28.1]} 14... Bc5 {[%clk 0:01:51.7]} 15. h4 {[%clk
0:02:25.8]} 15... Bxf5 {[%clk 0:01:48.4]} 16. Nxf5 {[%clk 0:02:07]} 16... Nd6
{[%clk 0:01:48.8]} 17. Ne3 {[%clk 0:02:07.1]} 17... f5 {[%clk 0:01:34.7]} 18.
Nxf5 {[%clk 0:01:59.2]} 18... Nxf5 {[%clk 0:01:31.6]} 19. exf5 {[%clk
0:01:58.2]} 19... e4 {[%clk 0:01:32]} 20. Qf4 {[%clk 0:01:48.2]} 20... Qd7
{[%clk 0:01:06.2]} 21. g4 {[%clk 0:01:14]} 21... e3 {[%clk 0:01:06.5]} 22. Bxe3
{[%clk 0:01:12.7]} 22... Bxe3 {[%clk 0:01:06.8]} 23. fxe3 {[%clk 0:01:13.6]}
23... Qd5 {[%clk 0:01:04.3]} 24. O-O {[%clk 0:01:11.8]} 24... Rae8 {[%clk
0:00:55]} 25. Rad1 {[%clk 0:00:41.9]} 25... Qc5 {[%clk 0:00:54.5]} 26. Bxc6
{[%clk 0:00:40]} 26... Qxc6 {[%clk 0:00:51.5]} 27. Rd4 {[%clk 0:00:39.6]} 27...
Re7 {[%clk 0:00:42.4]} 28. e4 {[%clk 0:00:37.9]} 28... Qb6 {[%clk 0:00:41.3]}
29. Re1 {[%clk 0:00:37.7]} 29... Qxb2 {[%clk 0:00:39.4]} 30. Qd2 {[%clk
0:00:35.4]} 30... Qb6 {[%clk 0:00:38.6]} 31. e5 {[%clk 0:00:31.8]} 31... Rfe8
{[%clk 0:00:36.7]} 32. e6 {[%clk 0:00:31.7]} 32... Rf8 {[%clk 0:00:35]} 33. Kh2
{[%clk 0:00:30.3]} 33... Qc6 {[%clk 0:00:32.9]} 34. Rd8 {[%clk 0:00:26.7]} 34...
Ree8 {[%clk 0:00:32.6]} 35. Rxe8 {[%clk 0:00:27]} 35... Rxe8 {[%clk 0:00:33.5]}
36. Qd4 {[%clk 0:00:24.7]} 36... h6 {[%clk 0:00:26.3]} 37. g5 {[%clk 0:00:23.6]}
37... Qf3 {[%clk 0:00:18.1]} 38. gxh6 {[%clk 0:00:20.7]} 38... Rg8 {[%clk
0:00:18]} 39. Rg1 {[%clk 0:00:19.8]} 39... Qxf5 {[%clk 0:00:15.5]} 40. Rxg7
{[%clk 0:00:20.3]} 40... Qf8 {[%clk 0:00:05.5]} 41. Rf7+ {[%clk 0:00:19.4]} 1-0

[Event "Late-Titled-Tuesday-Blitz-March-12-2024"]
[Site "Chess.com"]
[Date "2024.03.12"]
[Round "4"]
[White "prochn"]
[Black "Kildepiotr"]
[Result "0-1"]
[WhiteElo "2482"]
[BlackElo "2699"]
[TimeControl "180+1"]
[EndTime "14:37:49 PDT"]
[Termination "Kildepiotr won on time"]

1. d4 {[%clk 0:03:00.9]} 1... c5 {[%clk 0:02:59.7]} 2. d5 {[%clk 0:03:01]} 2...
e5 {[%clk 0:03:00.4]} 3. e4 {[%clk 0:02:56]} 3... d6 {[%clk 0:03:00.6]} 4. g3
{[%clk 0:02:51.1]} 4... Be7 {[%clk 0:03:00.4]} 5. Bg2 {[%clk 0:02:51.6]} 5...
Bg5 {[%clk 0:03:00.5]} 6. Bxg5 {[%clk 0:02:44.9]} 6... Qxg5 {[%clk 0:03:01.4]}
7. Nf3 {[%clk 0:02:43.2]} 7... Qd8 {[%clk 0:03:01.5]} 8. O-O {[%clk 0:02:42.7]}
8... Ne7 {[%clk 0:03:01.9]} 9. a4 {[%clk 0:02:40.5]} 9... O-O {[%clk 0:03:01.7]}
10. Na3 {[%clk 0:02:37.8]} 10... h6 {[%clk 0:02:54.4]} 11. Nc4 {[%clk
0:02:36.6]} 11... f5 {[%clk 0:02:54.6]} 12. exf5 {[%clk 0:02:36.4]} 12... Nxf5
{[%clk 0:02:55.5]} 13. c3 {[%clk 0:02:33.3]} 13... Qe7 {[%clk 0:02:44]} 14. Nfd2
{[%clk 0:02:32.8]} 14... Nd7 {[%clk 0:02:43.3]} 15. Ne4 {[%clk 0:02:26.8]} 15...
Nf6 {[%clk 0:02:42.9]} 16. a5 {[%clk 0:02:23.1]} 16... Bd7 {[%clk 0:02:36.3]}
17. Qc2 {[%clk 0:01:46.4]} 17... Bb5 {[%clk 0:02:26.1]} 18. Nxf6+ {[%clk
0:01:42.9]} 18... Rxf6 {[%clk 0:02:24.7]} 19. b3 {[%clk 0:01:42.5]} 19... Raf8
{[%clk 0:02:19]} 20. Be4 {[%clk 0:01:41.3]} 20... h5 {[%clk 0:01:45.1]} 21. Rae1
{[%clk 0:01:32.6]} 21... Qc7 {[%clk 0:01:38.1]} 22. f4 {[%clk 0:01:19.7]} 22...
exf4 {[%clk 0:01:20.3]} 23. Rxf4 {[%clk 0:01:19.1]} 23... Bxc4 {[%clk
0:00:56.2]} 24. bxc4 {[%clk 0:01:01.4]} 24... Qe7 {[%clk 0:00:38.3]} 25. Re2
{[%clk 0:00:48.5]} 25... Re8 {[%clk 0:00:29.2]} 26. Ref2 {[%clk 0:00:27.5]}
26... Ne3 {[%clk 0:00:22.6]} 27. Qd3 {[%clk 0:00:26.3]} 27... Rxf4 {[%clk
0:00:21.9]} 28. Rxf4 {[%clk 0:00:25.3]} 28... Ng4 {[%clk 0:00:21.9]} 29. h3
{[%clk 0:00:15.5]} 29... Ne5 {[%clk 0:00:21.6]} 30. Qe2 {[%clk 0:00:15.3]} 30...
Qg5 {[%clk 0:00:19.7]} 31. Kh2 {[%clk 0:00:14.5]} 31... Rf8 {[%clk 0:00:18.9]}
32. Qf1 {[%clk 0:00:07.6]} 32... Rf6 {[%clk 0:00:17.4]} 33. Rf5 {[%clk 0:00:06]}
33... Rxf5 {[%clk 0:00:17.4]} 34. Bxf5 {[%clk 0:00:05.3]} 34... g6 {[%clk
0:00:13.5]} 35. Be6+ {[%clk 0:00:05]} 35... Kg7 {[%clk 0:00:14.2]} 36. Qf2
{[%clk 0:00:02.2]} 36... Qf6 {[%clk 0:00:11]} 0-1

[Event "Late-Titled-Tuesday-Blitz-March-12-2024"]
[Site "Chess.com"]
[Date "2024.03.12"]
[Round "4"]
[White "betta2004"]
[Black "Gryffindorac8"]
[Result "1-0"]
[WhiteElo "2547"]
[BlackElo "2366"]
[TimeControl "180+1"]
[EndTime "14:37:50 PDT"]
[Termination "betta2004 won by resignation"]

1. d4 {[%clk 0:03:00]} 1... Nf6 {[%clk 0:02:59.9]} 2. Nc3 {[%clk 0:03:00.9]}
2... d5 {[%clk 0:02:59.2]} 3. Bf4 {[%clk 0:03:01.5]} 3... a6 {[%clk 0:02:56.6]}
4. e3 {[%clk 0:03:01]} 4... b5 {[%clk 0:02:54.8]} 5. Nf3 {[%clk 0:03:00]} 5...
e6 {[%clk 0:02:52.3]} 6. Bd3 {[%clk 0:02:59.2]} 6... Bb7 {[%clk 0:02:50.9]} 7.
O-O {[%clk 0:02:59.2]} 7... c5 {[%clk 0:02:45.2]} 8. dxc5 {[%clk 0:02:58.1]}
8... Bxc5 {[%clk 0:02:40]} 9. Ne5 {[%clk 0:02:57.8]} 9... O-O {[%clk 0:02:34.8]}
10. a4 {[%clk 0:02:55.3]} 10... b4 {[%clk 0:02:32.2]} 11. Ne2 {[%clk 0:02:55.5]}
11... Nbd7 {[%clk 0:02:30.9]} 12. Nd4 {[%clk 0:02:55.4]} 12... Nxe5 {[%clk
0:02:15.8]} 13. Bxe5 {[%clk 0:02:56.3]} 13... Bd6 {[%clk 0:02:06.9]} 14. Bxd6
{[%clk 0:02:34.6]} 14... Qxd6 {[%clk 0:02:07.8]} 15. Nb3 {[%clk 0:02:20.6]}
15... Rac8 {[%clk 0:01:38.8]} 16. Qd2 {[%clk 0:02:19.4]} 16... Rfd8 {[%clk
0:01:35.9]} 17. Rfd1 {[%clk 0:02:07.8]} 17... Qb6 {[%clk 0:01:32.4]} 18. a5
{[%clk 0:02:06.2]} 18... Qd6 {[%clk 0:01:28.7]} 19. Ra4 {[%clk 0:02:06.4]} 19...
Ng4 {[%clk 0:00:58.2]} 20. g3 {[%clk 0:02:05.8]} 20... Qc6 {[%clk 0:00:55.4]}
21. Rxb4 {[%clk 0:02:00.2]} 21... d4 {[%clk 0:00:53.6]} 22. e4 {[%clk
0:02:00.7]} 22... Ne5 {[%clk 0:00:52.1]} 23. Qe2 {[%clk 0:01:55.6]} 23... f5
{[%clk 0:00:40]} 24. Rb6 {[%clk 0:01:53.8]} 24... Qc7 {[%clk 0:00:29.7]} 25.
Bxa6 {[%clk 0:01:39.5]} 25... Bxe4 {[%clk 0:00:26.7]} 26. Bxc8 {[%clk
0:01:26.2]} 26... Nf3+ {[%clk 0:00:25]} 27. Qxf3 {[%clk 0:00:57.3]} 27... Bxf3
{[%clk 0:00:25.9]} 28. Bxe6+ {[%clk 0:00:57.3]} 28... Kh8 {[%clk 0:00:25.2]} 29.
Rxd4 {[%clk 0:00:57.4]} 29... h6 {[%clk 0:00:18.8]} 30. c3 {[%clk 0:00:41.9]}
30... Rxd4 {[%clk 0:00:16.2]} 31. Nxd4 {[%clk 0:00:42.8]} 31... Be4 {[%clk
0:00:10.5]} 32. f3 {[%clk 0:00:41.3]} 32... Bd3 {[%clk 0:00:08.6]} 33. Rc6
{[%clk 0:00:40.7]} 33... Qa7 {[%clk 0:00:08.3]} 34. Rc8+ {[%clk 0:00:40]} 34...
Kh7 {[%clk 0:00:07.5]} 35. b4 {[%clk 0:00:34]} 35... Qe7 {[%clk 0:00:07.5]} 36.
h4 {[%clk 0:00:32.1]} 36... Qd6 {[%clk 0:00:07.2]} 37. Kf2 {[%clk 0:00:31.8]}
37... Qe5 {[%clk 0:00:06.7]} 38. h5 {[%clk 0:00:30.8]} 38... f4 {[%clk
0:00:06.8]} 39. Bg8+ {[%clk 0:00:30]} 39... Kh8 {[%clk 0:00:06]} 40. Bc4+ {[%clk
0:00:30.6]} 40... Kh7 {[%clk 0:00:05.7]} 41. Bxd3+ {[%clk 0:00:31.1]} 41... g6
{[%clk 0:00:03.2]} 42. hxg6+ {[%clk 0:00:30.3]} 42... Kg7 {[%clk 0:00:03.8]} 43.
Rc7+ {[%clk 0:00:29.2]} 43... Kf6 {[%clk 0:00:04]} 44. Rf7+ {[%clk 0:00:28.8]}
44... Kg5 {[%clk 0:00:02.4]} 45. gxf4+ {[%clk 0:00:29.1]} 1-0

[Event "Late-Titled-Tuesday-Blitz-March-12-2024"]
[Site "Chess.com"]
[Date "2024.03.12"]
[Round "4"]
[White "kingofthenil"]
[Black "xasid81"]
[Result "1-0"]
[WhiteElo "2766"]
[BlackElo "2571"]
[TimeControl "180+1"]
[EndTime "14:37:57 PDT"]
[Termination "kingofthenil won by checkmate"]

1. e4 {[%clk 0:02:58.8]} 1... d5 {[%clk 0:02:58.9]} 2. exd5 {[%clk 0:02:59.5]}
2... Qxd5 {[%clk 0:02:59.7]} 3. Nc3 {[%clk 0:02:59.7]} 3... Qa5 {[%clk
0:02:59.4]} 4. a3 {[%clk 0:02:56.4]} 4... c6 {[%clk 0:02:57.8]} 5. b4 {[%clk
0:02:56.5]} 5... Qc7 {[%clk 0:02:58]} 6. d4 {[%clk 0:02:56.6]} 6... Nf6 {[%clk
0:02:58.4]} 7. Bc4 {[%clk 0:02:56.2]} 7... Bf5 {[%clk 0:02:58.1]} 8. Nf3 {[%clk
0:02:56.2]} 8... e6 {[%clk 0:02:58.4]} 9. O-O {[%clk 0:02:56.6]} 9... Nbd7
{[%clk 0:02:56.1]} 10. Qe2 {[%clk 0:02:52.4]} 10... Bd6 {[%clk 0:02:54.7]} 11.
Bg5 {[%clk 0:02:51.2]} 11... O-O {[%clk 0:02:54.2]} 12. Rfe1 {[%clk 0:02:48]}
12... Rfe8 {[%clk 0:02:53.8]} 13. Ne5 {[%clk 0:02:45.7]} 13... Bxe5 {[%clk
0:02:47.6]} 14. dxe5 {[%clk 0:02:46.6]} 14... Nd5 {[%clk 0:02:47.9]} 15. Bd2
{[%clk 0:02:35.3]} 15... Bxc2 {[%clk 0:02:39.5]} 16. Rac1 {[%clk 0:02:34.5]}
16... Nxc3 {[%clk 0:02:37.4]} 17. Bxc3 {[%clk 0:02:34.5]} 17... Bg6 {[%clk
0:02:36.2]} 18. Red1 {[%clk 0:02:33.4]} 18... Nb6 {[%clk 0:02:32.6]} 19. Rd6
{[%clk 0:02:29.7]} 19... Rad8 {[%clk 0:02:29.1]} 20. Rcd1 {[%clk 0:02:25.5]}
20... Nd5 {[%clk 0:02:29.1]} 21. Bd4 {[%clk 0:02:04.3]} 21... Rxd6 {[%clk
0:02:14.1]} 22. exd6 {[%clk 0:02:05.2]} 22... Qxd6 {[%clk 0:02:14.5]} 23. Bxa7
{[%clk 0:02:02.9]} 23... Ra8 {[%clk 0:02:00.1]} 24. Bc5 {[%clk 0:02:03]} 24...
Qc7 {[%clk 0:01:52.1]} 25. Qf3 {[%clk 0:01:56.1]} 25... b6 {[%clk 0:01:42.1]}
26. Bd4 {[%clk 0:01:55.7]} 26... b5 {[%clk 0:01:39.6]} 27. Ba2 {[%clk
0:01:26.5]} 27... Nxb4 {[%clk 0:01:23.3]} 28. axb4 {[%clk 0:01:23.2]} 28... Rxa2
{[%clk 0:01:22.6]} 29. Be5 {[%clk 0:01:24.1]} 29... Qc8 {[%clk 0:01:07.1]} 30.
Qxc6 {[%clk 0:01:21]} 30... Ra8 {[%clk 0:01:06.2]} 31. Qxb5 {[%clk 0:01:18.6]}
31... Qc2 {[%clk 0:00:58.3]} 32. Qd7 {[%clk 0:01:14.3]} 32... h5 {[%clk
0:00:55.1]} 33. h4 {[%clk 0:01:12.3]} 33... Ra2 {[%clk 0:00:47.9]} 34. Bg3
{[%clk 0:00:59]} 34... Rb2 {[%clk 0:00:40.8]} 35. Qe8+ {[%clk 0:00:58.5]} 35...
Kh7 {[%clk 0:00:39.8]} 36. Rd8 {[%clk 0:00:59.4]} 36... Bf5 {[%clk 0:00:27]} 37.
Qxf7 {[%clk 0:00:32.5]} 37... Qc1+ {[%clk 0:00:21.9]} 38. Kh2 {[%clk 0:00:32.5]}
38... Rb1 {[%clk 0:00:14.5]} 39. Qxh5+ {[%clk 0:00:31.8]} 39... Qh6 {[%clk
0:00:14.5]} 40. Qe8 {[%clk 0:00:28.6]} 40... Qc1 {[%clk 0:00:12.8]} 41. Qh8+
{[%clk 0:00:19.9]} 41... Kg6 {[%clk 0:00:13]} 42. h5+ {[%clk 0:00:20.4]} 42...
Kf6 {[%clk 0:00:09.6]} 43. Rf8+ {[%clk 0:00:16.5]} 43... Ke7 {[%clk 0:00:08.1]}
44. Qxg7# {[%clk 0:00:16.6]} 1-0

[Event "Late-Titled-Tuesday-Blitz-March-12-2024"]
[Site "Chess.com"]
[Date "2024.03.12"]
[Round "4"]
[White "karinachess1"]
[Black "WhiteKnight2612"]
[Result "1/2-1/2"]
[WhiteElo "2613"]
[BlackElo "2845"]
[TimeControl "180+1"]
[EndTime "14:37:58 PDT"]
[Termination "Game drawn by repetition"]

1. d4 {[%clk 0:03:00.9]} 1... Nf6 {[%clk 0:02:57.7]} 2. c4 {[%clk 0:03:01.3]}
2... g6 {[%clk 0:02:57.7]} 3. Nc3 {[%clk 0:03:01.5]} 3... d5 {[%clk 0:02:56.7]}
4. h4 {[%clk 0:03:01.7]} 4... dxc4 {[%clk 0:02:54.5]} 5. e4 {[%clk 0:02:59.3]}
5... b5 {[%clk 0:02:49.7]} 6. e5 {[%clk 0:02:53.4]} 6... Nd5 {[%clk 0:02:44.1]}
7. Nxb5 {[%clk 0:02:53.6]} 7... c6 {[%clk 0:02:39.8]} 8. Nc3 {[%clk 0:02:50.4]}
8... Be6 {[%clk 0:02:29.4]} 9. Nf3 {[%clk 0:02:40.1]} 9... h6 {[%clk 0:02:24.8]}
10. Bd2 {[%clk 0:02:23.1]} 10... Nd7 {[%clk 0:02:23.5]} 11. Qc1 {[%clk 0:02:14]}
11... N7b6 {[%clk 0:02:01.7]} 12. Ne4 {[%clk 0:02:04.1]} 12... Bg4 {[%clk
0:01:41.4]} 13. Be2 {[%clk 0:01:44.7]} 13... Bg7 {[%clk 0:01:38.3]} 14. O-O
{[%clk 0:01:41.7]} 14... Rb8 {[%clk 0:01:35.4]} 15. Nc5 {[%clk 0:01:27.3]} 15...
Qc8 {[%clk 0:01:33.2]} 16. Re1 {[%clk 0:01:20.9]} 16... Qf5 {[%clk 0:01:11.9]}
17. e6 {[%clk 0:01:01.1]} 17... fxe6 {[%clk 0:00:51.7]} 18. Ne5 {[%clk
0:01:00.9]} 18... Bxe5 {[%clk 0:00:47.6]} 19. Bxg4 {[%clk 0:00:42.2]} 19... Qxg4
{[%clk 0:00:48.5]} 20. dxe5 {[%clk 0:00:27.2]} 20... Nd7 {[%clk 0:00:39.9]} 21.
Re4 {[%clk 0:00:20.7]} 21... Qf5 {[%clk 0:00:38.6]} 22. Nxd7 {[%clk 0:00:20]}
22... Kxd7 {[%clk 0:00:38.4]} 23. Rxc4 {[%clk 0:00:20.3]} 23... Rhf8 {[%clk
0:00:36.2]} 24. Be1 {[%clk 0:00:20.3]} 24... Rb6 {[%clk 0:00:34.3]} 25. Qxh6
{[%clk 0:00:11.8]} 25... Rxb2 {[%clk 0:00:30.8]} 26. Rac1 {[%clk 0:00:11.9]}
26... Rxf2 {[%clk 0:00:24.7]} 27. Bxf2 {[%clk 0:00:09.9]} 27... Qxf2+ {[%clk
0:00:24.3]} 28. Kh1 {[%clk 0:00:08.3]} 28... Ne3 {[%clk 0:00:23.7]} 29. Rd4+
{[%clk 0:00:05.6]} 29... Kc7 {[%clk 0:00:24.1]} 30. Qg5 {[%clk 0:00:05.7]} 30...
Rf7 {[%clk 0:00:18.4]} 31. Re4 {[%clk 0:00:06]} 31... Nf5 {[%clk 0:00:17.1]} 32.
Rg4 {[%clk 0:00:04.2]} 32... Ne3 {[%clk 0:00:16.2]} 33. Re4 {[%clk 0:00:03.6]}
33... Nf1 {[%clk 0:00:12.5]} 34. Rec4 {[%clk 0:00:02.3]} 34... Ng3+ {[%clk
0:00:11.1]} 35. Kh2 {[%clk 0:00:02.9]} 35... Nf1+ {[%clk 0:00:11.6]} 36. Kh1
{[%clk 0:00:03]} 36... Ng3+ {[%clk 0:00:11.7]} 37. Kh2 {[%clk 0:00:03.6]} 37...
Nf1+ {[%clk 0:00:10.9]} 38. Kh1 {[%clk 0:00:03.7]} 1/2-1/2

[Event "Late-Titled-Tuesday-Blitz-March-12-2024"]
[Site "Chess.com"]
[Date "2024.03.12"]
[Round "4"]
[White "ExtremeLearner"]
[Black "Witik"]
[Result "0-1"]
[WhiteElo "2564"]
[BlackElo "2736"]
[TimeControl "180+1"]
[EndTime "14:37:58 PDT"]
[Termination "Witik won by resignation"]

1. d4 {[%clk 0:02:56.9]} 1... Nf6 {[%clk 0:02:59.7]} 2. c4 {[%clk 0:02:53.7]}
2... e6 {[%clk 0:02:59.6]} 3. Nc3 {[%clk 0:02:53.2]} 3... Bb4 {[%clk 0:02:58.6]}
4. e3 {[%clk 0:02:53.2]} 4... O-O {[%clk 0:02:58.5]} 5. a3 {[%clk 0:02:53.2]}
5... Bxc3+ {[%clk 0:02:58.3]} 6. bxc3 {[%clk 0:02:53.8]} 6... d6 {[%clk
0:02:59]} 7. Bd3 {[%clk 0:02:46.5]} 7... e5 {[%clk 0:02:57]} 8. Ne2 {[%clk
0:02:39.3]} 8... Re8 {[%clk 0:02:54.5]} 9. Ng3 {[%clk 0:02:32.4]} 9... c5 {[%clk
0:02:49.5]} 10. O-O {[%clk 0:02:30.7]} 10... Nc6 {[%clk 0:02:34.9]} 11. d5
{[%clk 0:02:04.5]} 11... Ne7 {[%clk 0:02:25.1]} 12. e4 {[%clk 0:01:58.2]} 12...
Ng6 {[%clk 0:02:24.8]} 13. Nf5 {[%clk 0:01:52.7]} 13... Ne7 {[%clk 0:02:05.9]}
14. Nxe7+ {[%clk 0:01:38.4]} 14... Qxe7 {[%clk 0:02:06]} 15. Bg5 {[%clk
0:01:34.4]} 15... h6 {[%clk 0:02:06.1]} 16. Bd2 {[%clk 0:01:30.2]} 16... Bg4
{[%clk 0:01:53.8]} 17. f3 {[%clk 0:01:30]} 17... Bd7 {[%clk 0:01:46]} 18. Qe2
{[%clk 0:01:26.6]} 18... Rf8 {[%clk 0:01:30.4]} 19. g3 {[%clk 0:01:14.8]} 19...
b6 {[%clk 0:01:25.4]} 20. Qg2 {[%clk 0:01:12.3]} 20... a6 {[%clk 0:01:09.6]} 21.
Rae1 {[%clk 0:01:05.1]} 21... b5 {[%clk 0:01:09.5]} 22. f4 {[%clk 0:01:04]}
22... bxc4 {[%clk 0:01:09.7]} 23. Bxc4 {[%clk 0:00:56.2]} 23... Bb5 {[%clk
0:01:10.1]} 24. fxe5 {[%clk 0:00:36.5]} 24... dxe5 {[%clk 0:01:09.9]} 25. Qe2
{[%clk 0:00:23.5]} 25... Ne8 {[%clk 0:00:37.3]} 26. Bxb5 {[%clk 0:00:17]} 26...
axb5 {[%clk 0:00:38.2]} 27. Qxb5 {[%clk 0:00:17.7]} 27... Rxa3 {[%clk
0:00:38.4]} 28. Qc4 {[%clk 0:00:12]} 28... Nd6 {[%clk 0:00:27.2]} 29. Qxc5
{[%clk 0:00:11.1]} 29... Ra2 {[%clk 0:00:27.6]} 30. Be3 {[%clk 0:00:10]} 30...
Rc8 {[%clk 0:00:24.6]} 31. Qb4 {[%clk 0:00:10.2]} 31... Qd7 {[%clk 0:00:22.4]}
32. Rf2 {[%clk 0:00:07.7]} 32... Ra4 {[%clk 0:00:19.4]} 33. Qb3 {[%clk
0:00:06.8]} 33... Nxe4 {[%clk 0:00:16.2]} 34. Rc2 {[%clk 0:00:05]} 34... Rac4
{[%clk 0:00:16.6]} 35. Bf2 {[%clk 0:00:02.3]} 35... Qxd5 {[%clk 0:00:15.7]} 36.
Rce2 {[%clk 0:00:02.2]} 36... f5 {[%clk 0:00:11.6]} 37. Rxe4 {[%clk 0:00:02.2]}
37... fxe4 {[%clk 0:00:11.1]} 38. Qb7 {[%clk 0:00:02.8]} 38... Qxb7 {[%clk
0:00:10.6]} 0-1